fUST/lending_fUST_20250825
["ID","MTS","AMOUNT","RATE_DAILY","PERIOD"]
[381291471,1756128638873,-161.0488651,0.00037419,30]
[381291473,1756128638883,-161.0488651,0.00037419,30]
[381291475,1756128638892,-161.0488651,0.00037419,30]
[381291477,1756128638902,-558.0333811,0.00037419,30]
[381291479,1756128638911,-347.0,0.00037446,7]
[381291481,1756128638920,-238.0,0.00037446,7]
[381291483,1756128638929,-161.0488651,0.00037478,30]
[381291485,1756128638939,-294.2662707,0.00037478,30]
[381291487,1756128638949,-581.6464433,0.00037478,30]
[381291489,1756128638958,-161.0488651,0.00037478,30]
[381291491,1756128638967,-581.6464433,0.00037478,30]
[381291493,1756128638976,-294.2662707,0.00037478,30]
[381291495,1756128638985,-581.6464433,0.00037478,30]
[381291497,1756128638994,-161.0488651,0.00037478,30]
[381291499,1756128639004,-294.2662707,0.00037478,30]
[381291501,1756128639013,-294.2662707,0.00037478,30]
[381291503,1756128639025,-161.0488651,0.00037478,30]
[381291505,1756128639035,-294.2662707,0.00037478,30]
[381291507,1756128639044,-161.0488651,0.00037478,30]
[381291509,1756128639054,-581.6464433,0.00037478,30]
[381291511,1756128639063,-294.2662707,0.00037478,30]
[381291513,1756128639072,-581.6464433,0.00037478,30]
[381291515,1756128639081,-161.0488651,0.00037478,30]
[381291517,1756128639091,-294.2662707,0.00037478,30]
[381291519,1756128639102,-161.0488651,0.00037478,30]
[381291521,1756128639112,-581.6464433,0.00037478,30]
[381291523,1756128639121,-294.2662707,0.00037478,30]
[381291525,1756128639131,-161.0488651,0.00037478,30]
[381291527,1756128639141,-294.2662707,0.00037478,30]
[381291529,1756128639151,-161.0488651,0.00037478,30]
[381291531,1756128639160,-581.6464433,0.00037478,30]
[381291533,1756128639169,-294.2662707,0.00037478,30]
[381291535,1756128639179,-161.0488651,0.00037478,30]
[381291537,1756128639188,-581.6464433,0.00037478,30]
[381291539,1756128639198,-387.2256533,0.00037478,30]
[381291541,1756128639208,-387.2256533,0.00037478,30]
[381291543,1756128639217,-581.6464433,0.00037478,30]
[381291545,1756128639226,-294.2662707,0.00037478,30]
[381291547,1756128639236,-238.0,0.00037662,2]
[381291549,1756128639245,-238.0,0.0003771,2]
[381291551,1756128639254,-347.0,0.00038232,2]
[381291553,1756128639264,-238.0,0.00038274,7]
[381291555,1756128639276,-774.87245894,0.00038286,2]
[381291557,1756128639286,-500.0,0.00038356,14]
[381291559,1756128639295,-346.0,0.0003859,2]
[381291561,1756128639305,-238.0,0.00038594,120]
[381291563,1756128639314,-500.0,0.0003863,14]
[381291565,1756128639324,-309.2061441,0.00038803,7]
[381291567,1756128639335,-500.0,0.00038803,15]
[381291569,1756128639344,-500.0,0.00038803,15]
[381291571,1756128639354,-500.0,0.00038803,15]
[381291573,1756128639363,-500.0,0.00038803,15]
[381291575,1756128639373,-500.0,0.00038803,15]
[381291577,1756128639382,-500.0,0.00038803,15]
[381291579,1756128639391,-462.40853284,0.00038803,2]
[381291581,1756128639401,-500.0,0.00038803,15]
[381291583,1756128639410,-262.76352921,0.00038803,15]
[381291585,1756128639419,-500.0,0.00038803,15]
[381291587,1756128639429,-500.0,0.00038803,15]
[381291589,1756128639439,-500.0,0.00038803,15]
[381291591,1756128639449,-500.0,0.00038803,15]
[381291593,1756128639458,-500.0,0.00038803,15]
[381291595,1756128639468,-500.0,0.00038803,15]
[381291597,1756128639479,-500.0,0.00038803,15]
[381291599,1756128639488,-500.0,0.00038803,15]
[381291601,1756128639498,-500.0,0.00038803,15]
[381291603,1756128639507,-500.0,0.00038803,15]
[381291605,1756128639518,-487.60860898,0.00038803,15]
[381291607,1756128639528,-500.0,0.00038803,15]
[381291609,1756128639537,-500.0,0.00038803,15]
[381291611,1756128639547,-500.0,0.00038803,15]
[381291613,1756128639557,-500.0,0.00038803,15]
[381291615,1756128639567,-500.0,0.00038803,15]
[381291617,1756128639576,-500.0,0.00038803,15]
[381291619,1756128639586,-500.0,0.00038803,15]
[381291621,1756128639595,-500.0,0.00038803,15]
[381291623,1756128639604,-500.0,0.00038803,15]
[381291625,1756128639614,-500.0,0.00038803,15]
[381291627,1756128639623,-500.0,0.00038803,15]
[381291629,1756128639634,-181.25217159,0.00038803,15]
[381291631,1756128639643,-500.0,0.00038803,15]
[381291633,1756128639653,-500.0,0.00038803,15]
[381291635,1756128639662,-500.0,0.00038803,15]
[381291637,1756128639671,-500.0,0.00038803,15]
[381291639,1756128639681,-500.0,0.00038803,15]
[381291641,1756128639691,-500.0,0.00038803,15]
[381291643,1756128639700,-500.0,0.00038803,15]
[381291645,1756128639710,-500.0,0.00038803,15]
[381291647,1756128639719,-500.0,0.00038803,15]
[381291649,1756128639728,-500.0,0.00038803,15]
[381291651,1756128639738,-500.0,0.00038803,15]
[381291653,1756128639748,-500.0,0.00038803,15]
[381291655,1756128639757,-500.0,0.00038803,15]
[381291657,1756128639767,-500.0,0.00038803,15]
[381291659,1756128639777,-500.0,0.00038803,15]
[381291662,1756128639786,-500.0,0.00038803,15]
[381291664,1756128639795,-500.0,0.00038803,15]
[381291666,1756128639805,-500.0,0.00038803,15]
[381291668,1756128639815,-500.0,0.00038803,15]
[381291670,1756128639824,-500.0,0.00038803,15]
[381291672,1756128639833,-500.0,0.00038803,15]
[381291674,1756128639842,-500.0,0.00038803,15]
[381291676,1756128639851,-500.0,0.00038803,15]
[381291678,1756128639860,-500.0,0.00038803,15]
[381291680,1756128639869,-500.0,0.00038803,15]
[381291682,1756128639879,-634.91174899,0.00038803,15]
[381291684,1756128639888,-500.0,0.00038803,15]
[381291686,1756128639897,-500.0,0.00038803,15]
[381291688,1756128639906,-500.0,0.00038803,15]
[381291690,1756128639916,-500.0,0.00038803,15]
[381291692,1756128639926,-500.0,0.00038803,15]
[381291694,1756128639936,-500.0,0.00038803,15]
[381291696,1756128639945,-500.0,0.00038803,15]
[381291698,1756128639955,-241.00540403,0.00038803,15]
[381291700,1756128639964,-500.0,0.00038803,15]
[381291702,1756128639974,-500.0,0.00038803,15]
[381291704,1756128639983,-500.0,0.00038803,15]
[381291706,1756128639992,-304.4211543,0.00038803,15]
[381291708,1756128640002,-2056.32633923,0.00038804,2]
[381291710,1756128640011,-2056.3263392,0.00038873,2]
[381291712,1756128640022,-234.21,0.0003888,3]
[381291714,1756128640031,-702.63,0.0003888,3]
[381291716,1756128640040,-468.42,0.0003889,3]
[381291717,1756128640050,-26307.6902982,0.0003889,3]
[381291720,1756128640059,-483.32494385,0.00038899,15]
[381291722,1756128640069,-500.0,0.00038899,15]
[381291725,1756128640078,-227.79935975,0.00038899,15]
[381291727,1756128640088,-33687.21689293,0.000389,2]
[381291729,1756128640101,-2308.46645015,0.000389,2]
[381291731,1756128640112,-1446.143164,0.000389,2]
[381291802,1756128640747,-923.59919563,0.00038804,2]
[381291927,1756128643735,-500.0,0.00038356,14]
[381291928,1756128643746,-92.73,0.0003863,14]
[381291970,1756128646740,-407.27,0.0003863,14]
[381291971,1756128646750,-5059.10648771,0.00038804,2]
[381291972,1756128646760,-304.32,0.0003889,10]
[381291974,1756128646770,-194176.53705322,0.000389,2]
[381291976,1756128646781,-500.0,0.00038904,14]
[381291978,1756128646791,-500.0,0.00038913,5]
[381291980,1756128646801,-500.0,0.00038913,5]
[381291982,1756128646811,-500.0,0.00038913,5]
[381291984,1756128646820,-500.0,0.00038913,5]
[381291986,1756128646830,-443.13785653,0.00038913,5]
[381291987,1756128646840,-500.0,0.00038913,5]
[381291988,1756128646850,-500.0,0.00038913,5]
[381291989,1756128646859,-500.0,0.00038913,5]
[381291990,1756128646869,-500.0,0.00038913,5]
[381291991,1756128646879,-500.0,0.00038913,5]
[381291992,1756128646889,-500.0,0.00038913,5]
[381291993,1756128646900,-500.0,0.00038913,5]
[381291994,1756128646909,-227.47252897,0.00038913,5]
[381291995,1756128646919,-501.49342471,0.00038913,5]
[381291996,1756128646928,-500.0,0.00038913,5]
[381291997,1756128646949,-238.0,0.0003892,2]
[381291998,1756128646960,-2056.3263392,0.00038941,2]
[381291999,1756128646971,-346.0,0.00038957,120]
[381292000,1756128646981,-5261.53805965,0.0003898,3]
[381292001,1756128646991,-42092.3044772,0.0003899,3]
[381292002,1756128647001,-844.86965257,0.0003899,3]
[381292003,1756128647011,-1241.62095828,0.00039,61]
[381292004,1756128647021,-385337.32,0.00039,30]
[381292005,1756128647032,-2056.3263392,0.0003901,2]
[381292006,1756128647043,-2056.3263392,0.00039078,2]
[381292007,1756128647053,-500.0,0.00039178,14]
[381292008,1756128647065,-774.87245894,0.00039194,2]
[381292009,1756128647076,-5261.53805965,0.00039335,3]
[381292010,1756128647086,-500.0,0.00039345,5]
[381292011,1756128647098,-638.00692939,0.00039452,14]
[381292012,1756128647110,-1000.0,0.0003946,5]
[381292013,1756128647122,-518.81068355,0.0003946,5]
[381292014,1756128647135,-1000.0,0.0003946,5]
[381292015,1756128647148,-1000.0,0.0003946,5]
[381292016,1756128647162,-1000.0,0.0003946,5]
[381292017,1756128647180,-1000.0,0.0003946,5]
[381292018,1756128647191,-511.66388907,0.0003946,5]
[381292019,1756128647202,-1000.0,0.0003946,5]
[381292020,1756128647213,-1000.0,0.0003946,5]
[381292021,1756128647223,-346.0,0.00039503,7]
[381292022,1756128647234,-238.0,0.00039543,7]
[381292023,1756128647245,-500.29906505,0.0003958,5]
[381292024,1756128647255,-500.0,0.0003965,5]
[381292025,1756128647265,-500.0,0.0003965,5]
[381292026,1756128647275,-500.0,0.0003965,5]
[381292027,1756128647286,-200.0,0.00039702,120]
[381292028,1756128647296,-5982.70568333,0.000399,2]
[381292029,1756128647306,-151.0,0.000399,13]
[381292030,1756128647317,-10523.0761193,0.00039931,3]
[381292031,1756128647327,-52003.91688576,0.00039941,2]
[381292032,1756128690182,160.0,0.00033818,2]
[381292033,1756128738484,165.114053,0.00013699,2]
[381292035,1756128833659,299.11650203,0.000199,2]
[381292036,1756128833778,299.11650189,0.00021627,2]
[381292037,1756128833896,299.11650189,0.00023353,2]
[381292038,1756128834064,299.11650189,0.0002508,2]
[381292052,1756128967538,592.0,0.00025076,2]
[381292053,1756129014659,266.41999269,0.000199,2]
[381292054,1756129014782,266.41999266,0.00021627,2]
[381292055,1756129014887,266.41999266,0.00023353,2]
[381292056,1756129015015,266.41999266,0.0002508,2]
[381292060,1756129193358,237.84349519,0.000199,2]
[381292061,1756129193475,237.84349496,0.00021627,2]
[381292062,1756129193610,237.84349496,0.00023353,2]
[381292063,1756129193726,237.84349496,0.0002508,2]
[381292064,1756129202698,162.78257235,0.00025,4]
[381292066,1756129281412,4000.0,0.00031213,60]
[381292067,1756129291907,1000.0,0.00031213,60]
[381292068,1756129372325,206.13102912,0.000199,2]
[381292069,1756129372488,206.13102896,0.00021627,2]
[381292070,1756129372619,206.13102896,0.00023353,2]
[381292071,1756129372709,206.13102896,0.0002508,2]
[381292072,1756129424739,173.199843,0.00025246,2]
[381292074,1756129577050,206.13102896,0.000199,2]
[381292075,1756129577181,206.13102896,0.00021903,2]
[381292076,1756129577325,206.13102896,0.00023906,2]
[381292077,1756129637135,-206.13102896,0.00025908,4]
[381292078,1756129637156,-171.18194807,0.00026794,2]
[381292079,1756129637183,-1181.29526253,0.00026894,2]
[381292080,1756129637208,-592.0,0.00026994,2]
[381292081,1756129637235,-206.13102896,0.00027911,8]
[381292082,1756129637257,-981.59165473,0.00029773,2]
[381292083,1756129637278,-715.00979987,0.00029898,2]
[381292084,1756129637302,-425.18420315,0.000299,2]
[381292085,1756129637327,-206.13102896,0.00029914,13]
[381292086,1756129637349,-1134.0,0.00029988,2]
[381292087,1756129637370,-300.0,0.00029988,2]
[381292088,1756129637391,-300.0,0.00029989,2]
[381292089,1756129637413,-1200.0,0.00029989,2]
[381292090,1756129637436,-300.0,0.00029989,2]
[381292091,1756129637462,-253.6,0.00029989,10]
[381292092,1756129637486,-3156.9228358,0.0002999,2]
[381292093,1756129637509,-4319.28753432,0.0002999,2]
[381292094,1756129637531,-500.0,0.00029997,2]
[381292095,1756129637558,-500.0,0.00029997,2]
[381292096,1756129637581,-500.0,0.00029997,2]
[381292097,1756129637601,-500.0,0.00029997,2]
[381292098,1756129637624,-500.0,0.00029997,2]
[381292099,1756129637649,-500.0,0.00029997,2]
[381292100,1756129637672,-500.0,0.00029997,2]
[381292101,1756129637695,-500.0,0.00029997,2]
[381292102,1756129637717,-500.0,0.00029997,2]
[381292103,1756129637739,-500.0,0.00029997,2]
[381292104,1756129637764,-500.0,0.00029997,2]
[381292105,1756129637788,-500.0,0.00029997,2]
[381292106,1756129637813,-364.16741945,0.00029997,2]
[381292107,1756129642132,-199.0,0.00029889,10]
[381292108,1756129642152,-171.18194806,0.00029897,2]
[381292109,1756129642173,-135.83258055,0.00029997,2]
[381292110,1756129642193,-500.0,0.00029997,2]
[381292111,1756129642213,-144.95123207,0.00029997,2]
[381292112,1756129648094,-287.93292261,0.00029897,2]
[381292113,1756129648119,-211.34,0.00029989,10]
[381292114,1756129648141,-500.0,0.00029997,2]
[381292115,1756129648164,-355.04876793,0.00029997,2]
[381292116,1756129648187,-500.0,0.00029997,2]
[381292117,1756129648209,-261.62235898,0.00029997,2]
[381292118,1756129648232,-217.87651134,0.00029997,2]
[381292119,1756129680448,167.066568,0.00013699,2]
[381292120,1756129750227,-592.0,0.00027198,2]
[381292121,1756129750252,-199.0,0.00029889,10]
[381292122,1756129750274,-631.38456716,0.00029987,2]
[381292123,1756129750296,-176.11,0.00029987,10]
[381292124,1756129750319,-234.21,0.0002999,3]
[381292125,1756129750342,-702.63,0.0002999,3]
[381292126,1756129750365,-2525.53826864,0.0002999,2]
[381292127,1756129750389,-300.0,0.00029995,2]
[381292128,1756129750411,-500.0,0.00029996,2]
[381292129,1756129750438,-500.0,0.00029996,2]
[381292130,1756129750459,-500.0,0.00029996,2]
[381292131,1756129750480,-496.62576032,0.00029996,2]
[381292132,1756129750502,-500.0,0.00029996,2]
[381292133,1756129750524,-500.0,0.00029996,2]
[381292134,1756129750548,-500.0,0.00029996,2]
[381292135,1756129750572,-500.0,0.00029996,2]
[381292136,1756129750594,-500.0,0.00029996,2]
[381292137,1756129750616,-500.0,0.00029996,2]
[381292138,1756129750640,-202.03330425,0.00029996,2]
[381292139,1756129750665,-511.65174395,0.00029996,2]
[381292140,1756129750687,-500.0,0.00029996,2]
[381292141,1756129750710,-500.0,0.00029996,2]
[381292142,1756129750733,-500.0,0.00029996,2]
[381292143,1756129750756,-500.0,0.00029996,2]
[381292144,1756129750777,-465.81134982,0.00029996,2]
[381292145,1756129750803,-500.0,0.00029996,2]
[381292146,1756129750828,-500.0,0.00029996,2]
[381292147,1756129750851,-500.0,0.00029996,2]
[381292148,1756129750877,-500.0,0.00029996,2]
[381292149,1756129750903,-500.0,0.00029996,2]
[381292150,1756129750925,-500.0,0.00029996,2]
[381292151,1756129750948,-500.0,0.00029996,2]
[381292152,1756129750970,-500.0,0.00029996,2]
[381292153,1756129750992,-500.0,0.00029996,2]
[381292154,1756129751280,-500.0,0.00029996,2]
[381292155,1756129751307,-500.0,0.00029996,2]
[381292156,1756129751331,-500.0,0.00029996,2]
[381292157,1756129751354,-500.0,0.00029996,2]
[381292158,1756129751383,-500.0,0.00029996,2]
[381292159,1756129751411,-500.0,0.00029996,2]
[381292160,1756129751438,-500.0,0.00029996,2]
[381292161,1756129751462,-500.0,0.00029996,2]
[381292162,1756129751484,-500.0,0.00029996,2]
[381292163,1756129751506,-500.0,0.00029996,2]
[381292164,1756129751528,-500.0,0.00029996,2]
[381292165,1756129751553,-500.0,0.00029996,2]
[381292166,1756129751581,-500.0,0.00029996,2]
[381292167,1756129751605,-500.0,0.00029996,2]
[381292168,1756129751629,-420.95820439,0.00029996,2]
[381292169,1756129751656,-500.0,0.00029996,2]
[381292170,1756129751682,-500.0,0.00029996,2]
[381292171,1756129751704,-254.11279051,0.00029996,2]
[381292172,1756129751727,-500.0,0.00029996,2]
[381292173,1756129751752,-500.0,0.00029996,2]
[381292174,1756129751775,-500.0,0.00029996,2]
[381292175,1756129751804,-500.0,0.00029996,2]
[381292176,1756129751829,-500.0,0.00029996,2]
[381292177,1756129751852,-500.0,0.00029996,2]
[381292178,1756129751878,-500.0,0.00029996,2]
[381292179,1756129751905,-500.0,0.00029996,2]
[381292180,1756129751932,-500.0,0.00029996,2]
[381292181,1756129751959,-500.0,0.00029996,2]
[381292182,1756129751986,-500.0,0.00029996,2]
[381292183,1756129752010,-500.0,0.00029996,2]
[381292184,1756129752033,-500.0,0.00029996,2]
[381292185,1756129752056,-500.0,0.00029996,2]
[381292186,1756129752082,-500.0,0.00029996,2]
[381292187,1756129752106,-500.0,0.00029996,2]
[381292188,1756129752129,-500.0,0.00029996,2]
[381292189,1756129752155,-500.0,0.00029996,2]
[381292190,1756129752181,-500.0,0.00029996,2]
[381292191,1756129752206,-500.0,0.00029996,2]
[381292192,1756129752228,-500.0,0.00029996,2]
[381292193,1756129752251,-500.0,0.00029996,2]
[381292194,1756129752276,-500.0,0.00029996,2]
[381292195,1756129752299,-500.0,0.00029996,2]
[381292196,1756129752322,-500.0,0.00029996,2]
[381292197,1756129752347,-500.0,0.00029996,2]
[381292198,1756129752373,-500.0,0.00029996,2]
[381292199,1756129752403,-500.0,0.00029996,2]
[381292200,1756129752428,-500.0,0.00029996,2]
[381292201,1756129752452,-500.0,0.00029996,2]
[381292202,1756129752476,-500.0,0.00029996,2]
[381292203,1756129752501,-500.0,0.00029996,2]
[381292204,1756129752524,-500.0,0.00029996,2]
[381292205,1756129752548,-180.68004259,0.00029996,2]
[381292206,1756129752571,-500.0,0.00029996,2]
[381292207,1756129752596,-500.0,0.00029996,2]
[381292208,1756129752620,-500.0,0.00029996,2]
[381292209,1756129752648,-500.0,0.00029996,2]
[381292210,1756129752675,-500.0,0.00029996,2]
[381292211,1756129752699,-500.0,0.00029996,2]
[381292212,1756129752723,-500.0,0.00029996,2]
[381292213,1756129752747,-500.0,0.00029996,2]
[381292214,1756129752770,-500.0,0.00029996,2]
[381292215,1756129752796,-500.0,0.00029996,2]
[381292216,1756129752818,-500.0,0.00029996,2]
[381292217,1756129752842,-500.0,0.00029996,2]
[381292218,1756129752866,-500.0,0.00029996,2]
[381292219,1756129752894,-500.0,0.00029996,2]
[381292220,1756129752916,-500.0,0.00029996,2]
[381292221,1756129752939,-500.0,0.00029996,2]
[381292222,1756129752964,-500.0,0.00029996,2]
[381292223,1756129752989,-500.08497553,0.00029996,2]
[381292224,1756129753013,-500.0,0.00029996,2]
[381292225,1756129753034,-500.0,0.00029996,2]
[381292226,1756129753056,-500.0,0.00029996,2]
[381292227,1756129753077,-500.0,0.00029996,2]
[381292228,1756129753101,-342.58980522,0.00029996,2]
[381292229,1756129753128,-500.0,0.00029996,2]
[381292230,1756129753152,-50000.0,0.00029997,2]
[381292231,1756129753176,-494.08493851,0.00029999,2]
[381292232,1756129753412,-624.60484165,0.00029999,2]
[381292233,1756129753434,-92997.44089685,0.0003,120]
[381292234,1756129755237,-199.0,0.00029789,10]
[381292235,1756129755258,-32524.32112,0.0003,120]
[381292236,1756129759453,-199.0,0.000299,120]
[381292237,1756129759477,-880.59,0.0002999,10]
[381292238,1756129759500,-74364.40348215,0.0003,120]
[381292239,1756129759521,-9847.99,0.0003,7]
[381292240,1756129759543,-897.67,0.0003,7]
[381292241,1756129759566,-2834.62,0.0003,7]
[381292242,1756129759589,-500.0,0.0003,5]
[381292243,1756129759611,-500.0,0.0003,5]
[381292244,1756129759635,-500.0,0.0003,5]
[381292245,1756129759661,-501.4000978,0.0003,2]
[381292246,1756129759683,-500.01132545,0.0003,5]
[381292247,1756129759704,-500.5836322,0.0003,5]
[381292248,1756129759726,-500.98423419,0.0003,5]
[381292249,1756129759749,-376.30788339,0.0003,7]
[381292250,1756129759771,-160.0,0.0003,7]
[381292251,1756129759795,-500.0,0.000303,5]
[381292252,1756129759816,-500.0,0.00030325,5]
[381292253,1756129759838,-500.0,0.000304,5]
[381292254,1756129759860,-1000.0,0.00030548,5]
[381292255,1756129759886,-1000.0,0.00030548,5]
[381292256,1756129759909,-500.0,0.00030848,5]
[381292257,1756129759931,-726.98812925,0.00030873,5]
[381292258,1756129759953,-160.0,0.00031,120]
[381292259,1756129759976,-1500.0,0.00031096,5]
[381292260,1756129759998,-1500.0,0.00031096,5]
[381292261,1756129760020,-1994.23522779,0.00031112,2]
[381292262,1756129760042,-631.38456716,0.00031139,2]
[381292263,1756129760064,-391.90027135,0.00031149,2]
[381292264,1756129760085,-154.89912601,0.00031175,14]
[381292265,1756129760108,-777.0809383,0.00031175,14]
[381292266,1756129760129,-200.0,0.00031212,10]
[381292267,1756129760154,-200.0,0.00031212,10]
[381292268,1756129760175,-209.904055,0.00031212,10]
[381292269,1756129760196,-31364.36352216,0.00031212,60]
[381292270,1756129760650,-5106.83665718,0.00031212,60]
[381292271,1756129769112,-410.5355066,0.00031212,60]
[381292272,1756129769132,-468.42,0.0003136,3]
[381292273,1756129769155,-715.00979982,0.00031914,2]
[381292274,1756129769181,-206.13102896,0.00031917,17]
[381292275,1756129769201,-300.0,0.00032322,3]
[381292276,1756129769221,-420.0,0.00032328,2]
[381292277,1756129769243,-425.18420314,0.00032383,2]
[381292278,1756129769264,-1200.0,0.00032459,3]
[381292279,1756129769283,-304.7012274,0.00032859,2]
[381292280,1756129769307,-1854.68,0.00032876,120]
[381292281,1756129769328,-631.38456716,0.0003359,2]
[381292282,1756129769348,-2834.62,0.000336,7]
[381292283,1756129769368,-9847.99,0.000338,14]
[381292284,1756129769388,-897.67,0.000338,7]
[381292285,1756129769411,-232.4766599,0.00033894,2]
[381292286,1756129769438,-206.13102896,0.0003392,21]
[381292287,1756129769460,-715.00979982,0.0003393,2]
[381292288,1756129769483,-216.04034502,0.00033931,2]
[381292289,1756129769503,-160.0,0.0003424,2]
[381292290,1756129769523,-587.7072527,0.00034243,2]
[381292291,1756129769544,-1854.68,0.0003452,120]
[381292292,1756129769565,-425.18420314,0.00034865,2]
[381292293,1756129769585,-500.0,0.00035616,7]
[381292294,1756129769605,-565.09583888,0.00035616,7]
[381292295,1756129769631,-206.13102896,0.00035922,25]
[381292296,1756129769653,-715.00979982,0.00035946,2]
[381292297,1756129769675,-1854.68,0.00036164,120]
[381292298,1756129769695,-1994.23522777,0.00036191,2]
[381292299,1756129769716,-607.37640761,0.00036433,5]
[381292300,1756129769736,-2834.62,0.000368,7]
[381292301,1756129770637,199.0,0.00032776,120]
[381292302,1756129783757,206.20330796,0.000199,2]
[381292303,1756129783803,206.2033078,0.00023029,2]
[381292304,1756129783861,206.2033078,0.00026159,4]
[381292305,1756129784009,206.2033078,0.00029288,11]
[381292306,1756129784145,206.2033078,0.00032418,18]
[381292307,1756129784317,206.2033078,0.00035547,25]
[381292490,1756129821118,151.0,0.00033823,2]
[381292491,1756129821614,151.0,0.00033823,2]
[381292492,1756129822332,151.0,0.00033823,2]
[381292493,1756129823050,151.0,0.00033823,2]
[381292494,1756129823174,151.0,0.00033823,2]
[381292504,1756129823897,151.0,0.00033823,2]
[381292509,1756129824929,151.0,0.00033823,2]
[381292510,1756129825081,151.0,0.00033823,2]
[381292513,1756129825699,300.0,0.00033823,2]
[381292514,1756129826602,151.0,0.00033823,2]
[381292515,1756129826780,300.0,0.00033823,2]
[381292517,1756129827412,151.0,0.00033823,2]
[381292518,1756129827693,300.0,0.00033823,2]
[381292519,1756129827859,151.0,0.00033823,2]
[381292526,1756129828381,151.0,0.00033823,2]
[381292527,1756129828837,48.88159912,0.00033823,2]
[381292582,1756129832020,-556.96447299,0.00031212,30]
[381292656,1756129832746,-4443.03552701,0.00031212,30]
[381292658,1756129832755,-102.11840088,0.00033823,2]
[381292660,1756129832765,-151.0,0.00033823,2]
[381292662,1756129832774,-300.0,0.00033823,2]
[381292664,1756129832784,-151.0,0.00033823,2]
[381292666,1756129832794,-151.0,0.00033823,2]
[381292668,1756129832804,-151.0,0.00033823,2]
[381292670,1756129832816,-250.0,0.00033823,2]
[381292672,1756129832825,-300.0,0.00033823,2]
[381292674,1756129832834,-151.0,0.00033823,2]
[381292676,1756129832844,-300.0,0.00033823,2]
[381292678,1756129832854,-151.0,0.00033823,2]
[381292680,1756129832864,-425.18420314,0.00037348,2]
[381292682,1756129832874,-160.0,0.0003738,2]
[381292684,1756129832884,-844.86965257,0.00037445,2]
[381292686,1756129832895,-160.0,0.00037447,2]
[381292688,1756129832905,-9847.99,0.000376,14]
[381292690,1756129832915,-897.67,0.000376,7]
[381292692,1756129832924,-1854.68,0.00037808,120]
[381292694,1756129832934,-715.00979982,0.00037961,2]
[381292696,1756129832943,-500.0,0.00038356,14]
[381292698,1756129832954,-151.0,0.000384,19]
[381292699,1756129832964,-500.0,0.0003863,14]
[381292700,1756129832974,-206.2033078,0.00038676,31]
[381292701,1756129832983,-199.0,0.000389,30]
[381292702,1756129832993,-518.75272902,0.00038904,14]
[381292703,1756129833002,-1262.76913432,0.00039122,3]
[381292704,1756129833012,-50647.7521376,0.00039132,2]
[381292705,1756129833021,-5786.2483054,0.00039132,2]
[381292706,1756129833030,-168.0,0.00039425,2]
[381292707,1756129833040,-1854.68,0.00039452,120]
[381292708,1756129833051,-151.0,0.000396,11]
[381292709,1756129833061,-153.9638014,0.00039726,30]
[381292710,1756129833071,-425.18420314,0.0003983,2]
[381292711,1756129833081,-376.30788339,0.00039831,3]
[381292712,1756129833090,-160.0,0.00039831,3]
[381292713,1756129833100,-160.0,0.00039831,3]
[381292714,1756129833110,-5051.07653728,0.00039831,3]